fUSD/lending_fUSD_20240214
["ID","MTS","AMOUNT","RATE_DAILY","PERIOD"]
[313981178,1707904886080,-207.43428311,0.0002289,2]
[313981179,1707904886104,-207.43428311,0.0002289,2]
[313981180,1707904886127,-13255.8052304,0.00022896,2]
[313981181,1707904886154,-735.28,0.00022897,2]
[313981182,1707904886177,-2382.24784995,0.00022897,2]
[313981183,1707904886198,-196.14906696,0.00022898,2]
[313981184,1707904886222,-5472.3344084,0.00022898,2]
[313981185,1707904886244,-481.080241,0.00022898,2]
[313981186,1707904886266,-284.28480565,0.00022898,2]
[313981187,1707904886287,-155.28034316,0.00022898,2]
[313981188,1707904886309,-220.3694197,0.00022898,2]
[313981189,1707904886331,-269.91410882,0.00022898,2]
[313981190,1707904886354,-424.76585799,0.00022898,2]
[313981191,1707904886376,-1040.4954198,0.00022898,2]
[313981192,1707904886398,-157.11465594,0.00022898,2]
[313981193,1707904886419,-155.0,0.00022898,2]
[313981194,1707904886441,-155.0,0.00022898,2]
[313981195,1707904886462,-215.48805778,0.00022898,2]
[313981196,1707904886484,-1176.59774176,0.00022898,2]
[313981197,1707904886505,-129987.82277163,0.00022898,2]
[313981198,1707904886526,-158.67878115,0.00022898,2]
[313981199,1707904886547,-283.89703528,0.00022898,2]
[313981200,1707904886574,-734.28,0.00022898,2]
[313981201,1707904886595,-500.0,0.00022899,2]
[313981202,1707904886618,-446.23966,0.00022899,2]
[313981203,1707904886643,-266750.81724872,0.000229,3]
[313981204,1707904886665,-721.68,0.000229,2]
[313981205,1707904886686,-1755.89910695,0.000229,2]
[313981206,1707904886708,-2774032.66996474,0.000229,2]
[313981207,1707904886730,-25421.5051,0.000229,2]
[313981208,1707904886751,-563.92609135,0.000229,2]
[313981209,1707904886774,-499.0,0.00022905,2]
[313981210,1707904886795,-152.52,0.0002297,2]
[313981211,1707904886818,-460.22942243,0.00022998,2]
[313981212,1707904887052,-156.28787644,0.00022998,2]
[313981213,1707904887073,-13825.27562351,0.00022998,2]
[313981214,1707904887093,-155.0,0.00022998,2]
[313981215,1707904887113,-157.30846236,0.00022998,2]
[313981216,1707904887134,-155.0,0.00022998,2]
[313981217,1707904887157,-315.93907995,0.00022998,2]
[313981218,1707904887178,-2331.62604922,0.00022998,2]
[313981219,1707904887199,-364.10042681,0.00022998,2]
[313981220,1707904887219,-155.18123601,0.00022998,2]
[313981221,1707904887242,-158.8409691,0.00022998,2]
[313981222,1707904887265,-5325.75894591,0.00022998,5]
[313981223,1707904887285,-208.47203459,0.00022998,2]
[313981224,1707904887306,-389.21230668,0.00022998,2]
[313981225,1707904887326,-155.45150205,0.00022998,2]
[313981226,1707904887348,-155.89113478,0.00022998,2]
[313981227,1707904887369,-1261.37348646,0.00022998,2]
[313981228,1707904887393,-156.13278491,0.00022998,2]
[313981229,1707904887417,-1239.0576,0.00022998,2]
[313981230,1707904887439,-1050.85386154,0.00022998,2]
[313981231,1707904887460,-191.67537881,0.00022998,2]
[313981232,1707904887483,-1374.50430544,0.00022998,2]
[313981233,1707904887504,-670.84404934,0.00022998,2]
[313981234,1707904887525,-159.99282396,0.00022999,2]
[313981235,1707904887547,-514.150335,0.00022999,2]
[313981236,1707904887595,-386.41822911,0.00022999,2]
[313981237,1707904887619,-764.92324425,0.00023,3]
[313981238,1707904887647,-715.47,0.00023,2]
[313981239,1707904887673,-494758.6551777,0.00023,2]
[313981240,1707904963098,309.0,0.00021838,2]
[313981241,1707904964842,302.58,0.00020657,2]
[313981243,1707905117654,162.04,0.00025805,120]
[313981250,1707905395178,307.72,0.00020053,2]
[313981259,1707905432257,-695.0,0.00021913,2]
[313981260,1707905432273,-538.48725567,0.00021913,2]
[313981261,1707905432282,-335.2,0.00021914,2]
[313981262,1707905432291,-819.24,0.00022082,2]
[313981263,1707905432300,-208.0,0.00022101,2]
[313981264,1707905432310,-250.0,0.00022112,2]
[313981265,1707905432319,-162.04,0.00022119,2]
[313981266,1707905432329,-531.47,0.00022159,2]
[313981267,1707905432340,-307.72,0.00022317,2]
[313981268,1707905432350,-154.23,0.00022513,2]
[313981269,1707905432360,-500.0,0.00022634,2]
[313981270,1707905432370,-166.43,0.00022652,2]
[313981271,1707905432380,-154.23,0.0002266,2]
[313981272,1707905432390,-155.4811619,0.00022722,2]
[313981273,1707905432400,-153.79287038,0.00022753,2]
[313981274,1707905432410,-153.79287038,0.00022777,2]
[313981275,1707905432420,-572.08584167,0.00022797,2]
[313981276,1707905432437,-427.91415833,0.00022797,2]
[313981277,1707905432447,-200.24245427,0.00022797,2]
[313981278,1707905432458,-153.79287038,0.000228,2]
[313981279,1707905432468,-1158.77366566,0.000228,2]
[313981280,1707905432486,-1341.22633434,0.000228,2]
[313981281,1707905432496,-154.23,0.00022807,2]
[313981282,1707905432506,-776.62651649,0.00022899,2]
[313981283,1707905432516,-1500.0,0.000229,2]
[313981284,1707905432526,-500.0,0.000229,2]
[313981285,1707905432535,-2223.7917,0.000229,2]
[313981286,1707905432545,-1925.984,0.000229,2]
[313981287,1707905432555,-1009.16160514,0.000229,2]
[313981288,1707905432564,-21496.67284403,0.000229,2]
[313981290,1707905432580,-2637.53466704,0.000229,2]
[313981292,1707905432593,-103360.0,0.000229,2]
[313981294,1707905432604,-15386.57219586,0.000229,2]
[313981296,1707905432615,-2165.16938913,0.000229,2]
[313981301,1707905432653,-6315.29726053,0.000229,2]
[313981303,1707905432664,-5055.15000002,0.000229,2]
[313981306,1707905432681,-3099.62019206,0.000229,2]
[313981307,1707905432692,-329.66712704,0.000229,2]
[313981335,1707905440024,-205.0,0.00022101,2]
[313981336,1707905440034,-68274.76862429,0.000229,2]
[313981338,1707905440044,-154.63198928,0.000229,4]
[313981339,1707905440053,-154.23,0.00022953,2]
[313981340,1707905440063,-2789.2038977,0.00022998,5]
[313981341,1707905440073,-3415.38795859,0.00022999,2]
[313981342,1707905440083,-500.0,0.00022999,2]
[313981343,1707905440094,-245.7961023,0.00022999,2]
[313981344,1707905440104,-443026.4841837,0.00023,2]
[313981345,1707905440117,-501913.86848784,0.00023,2]
[313981346,1707905440128,-1459.94116469,0.00023,2]
[313981347,1707905440140,-3334.90442221,0.00023,2]
[313981348,1707905440153,-2654.00200727,0.00023,2]
[313981349,1707905440166,-846.96710538,0.00023,2]
[313981350,1707905440178,-1033.62,0.00023,2]
[313981351,1707905440198,-4542.62060793,0.00023,2]
[313981352,1707905440223,-174211.96215363,0.00023,2]
[313981375,1707905440515,-1141346.05818404,0.00023,2]
[313981376,1707905440531,-806.52739813,0.00023,2]
[313981377,1707905440541,-325.42,0.00023,2]
[313981378,1707905440550,-154.23,0.000231,2]
[313981379,1707905440559,-250.0,0.00023107,2]
[313981380,1707905440569,-152.52,0.00023244,2]
[313981381,1707905440578,-154.23,0.00023246,2]
[313981382,1707905440587,-3295.0,0.000233,2]
[313981383,1707905440596,-154.23,0.00023393,2]
[313981384,1707905440606,-20790.0,0.000234,2]
[313981385,1707905440619,-152.52,0.00023517,2]
[313981386,1707905440628,-154.23,0.0002354,2]
[313981387,1707905440637,-154.23,0.00023686,2]
[313981388,1707905440647,-819.24,0.00023726,2]
[313981389,1707905440656,-152.52,0.0002379,2]
[313981390,1707905440665,-2780.93084689,0.000239,2]
[313981391,1707905440674,-152.52,0.00024064,2]
[313981392,1707905440684,-186.47212307,0.000243,2]
[313981393,1707905440693,-1577.44,0.00024384,2]
[313981394,1707905440703,-3020.66,0.00024384,2]
[313981395,1707905440713,-499.0,0.00024549,2]
[313981396,1707905440722,-307.72,0.0002458,2]
[313981397,1707905440731,-19252.21979484,0.000246,2]
[313981398,1707905440741,-772.04,0.00024673,2]
[313981399,1707905440750,-59370.79139597,0.0002479,2]
[313981400,1707905440760,-59370.79139595,0.0002479,2]
[313981401,1707905440770,-2044.11131226,0.00024799,2]
[313981402,1707905440779,-2044.11131222,0.00024799,2]
[313981403,1707905440788,-165.98,0.00024847,2]
[313981404,1707905440798,-1009.16160507,0.000249,2]
[313981405,1707905440809,-501.60021559,0.0002497,2]
[313981406,1707905440818,-324.75158999,0.00025,2]
[313981407,1707905440828,-155.0,0.00025,2]
[313981408,1707905440838,-1250.0,0.00025,3]
[313981409,1707905440848,-2780.93084689,0.00025,2]
[313981410,1707905440858,-3000.0,0.00025,2]
[313981411,1707905440868,-3000.0,0.0002501,2]
[313981412,1707905440884,-208.0,0.00025016,6]
[313981413,1707905440895,-3000.0,0.0002502,2]
[313981414,1707905440905,-3000.0,0.0002503,2]
[313981415,1707905440915,-3000.0,0.0002504,2]
[313981416,1707905440925,-3000.0,0.0002505,2]
[313981417,1707905440934,-3000.0,0.0002506,2]
[313981418,1707905440944,-3000.0,0.0002507,2]
[313981419,1707905440953,-3000.0,0.0002508,2]
[313981420,1707905440963,-1052.14694065,0.0002508,2]
[313981421,1707905440972,-3000.0,0.0002509,2]
[313981422,1707905440982,-3000.0,0.000251,2]
[313981423,1707905440992,-3000.0,0.0002511,2]
[313981424,1707905441002,-3000.0,0.0002512,2]
[313981425,1707905441012,-3000.0,0.0002513,2]
[313981426,1707905441022,-3758.92008,0.0002514,2]
[313981427,1707905441032,-163.31,0.00025154,2]
[313981428,1707905441042,-250.0,0.00025154,2]
[313981429,1707905441051,-382.36,0.00025154,2]
[313981430,1707905441060,-4180.74,0.00025154,2]
[313981431,1707905441074,-3559.293,0.000252,2]
[313981432,1707905441084,-4208.0,0.000252,2]
[313981433,1707905441095,-1128.0960105,0.00025289,2]
[313981434,1707905441104,-1089.8498985,0.00025289,2]
[313981435,1707905441113,-150.0,0.00025345,2]
[313981436,1707905441129,-304.687,0.00025345,2]
[313981437,1707905441138,-819.24,0.0002537,2]
[313981438,1707905441147,-200.0,0.00025805,2]
[313981439,1707905441157,-512.26744547,0.00025805,2]
[313981440,1707905441166,-2609.07512197,0.00025805,2]
[313981441,1707905441175,-4000.0,0.00025805,2]
[313981442,1707905441185,-1838.0,0.00026,2]
[313981443,1707905441194,-2780.93084689,0.000261,2]
[313981444,1707905441204,-59370.79139595,0.00026133,2]
[313981445,1707905441214,-2044.11131222,0.00026133,2]
[313981446,1707905441223,-499.0,0.00026193,2]
[313981447,1707905441232,-164.67,0.00026225,2]
[313981448,1707905441242,-307.72,0.00026844,2]
[313981449,1707905441251,-1009.16160507,0.000269,3]
[313981450,1707905441260,-1300.0,0.00027,3]
[313981451,1707905441271,-819.24,0.00027014,2]
[313981452,1707905441280,-165.98,0.00027106,2]
[313981453,1707905441291,-2780.93084689,0.000272,2]
[313981454,1707905441301,-155.0,0.00027397,2]
[313981455,1707905441311,-161.84,0.00027397,2]
[313981456,1707905441323,-7999.99,0.000274,6]
[313981457,1707905441332,-1006.0,0.000274,2]
[313981458,1707905441342,-500.0,0.000274,7]
[313981459,1707905441352,-500.0,0.000274,7]
[313981460,1707905441362,-772.04,0.00027414,2]
[313981461,1707905441371,-100000.0,0.00027482,2]
[313981462,1707905441381,-3625.24,0.00027482,2]
[313981463,1707905441390,-161.84,0.00027575,2]
[313981464,1707905441400,-2350.7817555,0.00027608,28]
[313981465,1707905441409,-161.84,0.00027753,2]
[313981466,1707905441419,-200.0,0.00027776,2]
[313981467,1707905441428,-58375.40862436,0.000278,3]
[313981468,1707905441437,-59370.79139595,0.000278,2]
[313981469,1707905441446,-2044.11131222,0.000278,2]
[313981470,1707905441455,-499.0,0.00027837,2]
[313981471,1707905441465,-20805.89889068,0.000279,2]
[313981472,1707905441474,-208.0,0.00027931,10]
[313981473,1707905441484,-161.84,0.00027932,2]
[313981474,1707905441494,-969.27668517,0.00028,2]
[313981475,1707905441503,-693433.67656279,0.00028,2]
[313981476,1707905441514,-156.094942,0.00028,7]
[313981477,1707905441524,-157.808764,0.00028,7]
[313981478,1707905441534,-151.0,0.00028,7]
[313981479,1707905441543,-158.0765,0.00028,7]
[313981480,1707905441552,-158.0765,0.00028,7]
[313981481,1707905441561,-151.0,0.00028,7]
[313981482,1707905441571,-151.0,0.00028,7]
[313981483,1707905441580,-156.636542,0.00028,7]
[313981484,1707905441590,-408.401703,0.00028,7]
[313981485,1707905441599,-408.401703,0.00028,7]
[313981486,1707905441608,-151.0,0.00028,7]
[313981487,1707905441618,-154.331164,0.00028,7]
[313981488,1707905441627,-151.0,0.00028,7]
[313981489,1707905441637,-200.0,0.00028008,2]
[313981490,1707905441646,-233.570803,0.00028008,3]
[313981491,1707905441655,-21194.65040386,0.00028027,7]
[313981492,1707905441665,-300.0,0.000281,5]
[313981493,1707905441674,-161.84,0.0002811,2]
[313981494,1707905441683,-400.0,0.0002827,2]
[313981495,1707905441693,-161.84,0.00028288,2]
[313981496,1707905441703,-1000.0,0.00028297,7]
[313981497,1707905441713,-262.83472794,0.00028297,3]
[313981498,1707905441722,-500.0,0.00028297,3]
[313981499,1707905441732,-342.19280109,0.00028297,3]
[313981500,1707905441742,-241.26582944,0.00028297,3]
[313981501,1707905441751,-255.59838056,0.00028297,3]
[313981502,1707905441761,-235.92239162,0.00028297,3]
[313981503,1707905441770,-177.00075046,0.00028297,3]
[313981504,1707905441780,-382.36,0.00028298,2]
[313981505,1707905441789,-2780.93084689,0.000283,2]
[313981506,1707905441799,-161.84,0.00028466,2]
[313981507,1707905441808,-31815.27457347,0.00028538,7]
[313981508,1707905441818,-161.84,0.00028644,2]
[313981509,1707905441828,-300.0,0.00028648,5]
[313981510,1707905441837,-819.24,0.00028658,2]
[313981511,1707905441847,-155.0,0.00028767,2]
[313981512,1707905441857,-500.0,0.000288,2]
[313981513,1707905441866,-500.0,0.000288,2]
[313981514,1707905441876,-500.0,0.000288,2]
[313981515,1707905441885,-500.0,0.000288,2]
[313981516,1707905441895,-500.0,0.000288,2]
[313981517,1707905441905,-500.0,0.000288,2]
[313981518,1707905441915,-500.0,0.000288,2]
[313981519,1707905441924,-500.0,0.000288,2]
[313981520,1707905441934,-500.0,0.000288,2]
[313981521,1707905441943,-500.0,0.000288,2]
[313981522,1707905441952,-500.0,0.000288,2]
[313981523,1707905441961,-500.0,0.000288,2]
[313981524,1707905441972,-500.0,0.000288,2]
[313981525,1707905441982,-500.0,0.000288,2]
[313981526,1707905441991,-500.0,0.000288,2]
[313981527,1707905442001,-500.0,0.000288,2]
[313981528,1707905442010,-500.0,0.000288,2]
[313981529,1707905442020,-500.0,0.000288,2]
[313981530,1707905442029,-500.0,0.000288,2]
[313981531,1707905442039,-500.0,0.000288,2]
[313981532,1707905442048,-500.0,0.000288,2]
[313981533,1707905442057,-500.0,0.000288,2]
[313981534,1707905442067,-500.0,0.000288,2]
[313981535,1707905442076,-500.0,0.000288,2]
[313981536,1707905442085,-500.0,0.000288,2]
[313981537,1707905442095,-500.0,0.000288,2]
[313981538,1707905442104,-500.0,0.000288,2]
[313981539,1707905442113,-500.0,0.000288,2]
[313981540,1707905442122,-500.0,0.000288,2]
[313981541,1707905442131,-500.0,0.000288,2]
[313981542,1707905442140,-500.0,0.000288,2]
[313981543,1707905442150,-500.0,0.000288,2]
[313981544,1707905442159,-500.0,0.000288,2]
[313981545,1707905442168,-500.0,0.000288,2]
[313981546,1707905442178,-500.0,0.000288,2]
[313981547,1707905442187,-500.0,0.000288,2]
[313981548,1707905442196,-500.0,0.000288,2]
[313981549,1707905442205,-500.0,0.000288,2]
[313981550,1707905442214,-500.0,0.000288,2]
[313981551,1707905442223,-500.0,0.000288,2]
[313981552,1707905442232,-500.0,0.000288,2]
[313981553,1707905442241,-110932.47928236,0.000288,2]
[313981554,1707905442250,-161.84,0.00028822,2]
[313981555,1707905442259,-1009.16160507,0.000289,4]
[313981556,1707905442269,-400.0,0.0002897,2]
[313981557,1707905442279,-2000.0,0.00029,3]
[313981558,1707905442289,-328.28451552,0.00029,2]
[313981559,1707905442298,-1350.0,0.00029,3]
[313981560,1707905442308,-11492.07124304,0.00029,15]
[313981561,1707905442317,-307.72,0.00029108,2]
[313981562,1707905442327,-300.0,0.00029196,5]
[313981563,1707905442337,-162.5,0.00029248,120]
[313981564,1707905442346,-1000.0,0.000293,2]
[313981565,1707905442356,-500.0,0.00029399,2]
[313981566,1707905442366,-500.0,0.000294,2]
[313981567,1707905442375,-500.0,0.000294,2]
[313981568,1707905442384,-500.0,0.000294,2]
[313981569,1707905442394,-500.0,0.000294,2]
[313981570,1707905442403,-500.0,0.000294,2]
[313981571,1707905442412,-500.0,0.000294,2]
[313981572,1707905442421,-2780.93084689,0.000294,2]
[313981573,1707905442431,-59370.79139595,0.00029467,2]
[313981574,1707905442440,-2044.11131222,0.00029467,2]
[313981575,1707905442450,-499.0,0.00029481,2]
[313981576,1707905442459,-162.04,0.00029492,120]
[313981577,1707905442469,-228.49645632,0.000295,3]
[313981578,1707905442479,-813.80611677,0.000296,2]
[313981579,1707905442488,-300.0,0.00029744,5]
[313981580,1707905442497,-176.56149042,0.000298,2]
[313981581,1707905442506,-20000.0,0.000299,2]
[313981582,1707905442516,-50000.0,0.0003,2]
[313981583,1707905442525,-167.17569114,0.0003,4]
[313981584,1707905442534,-273.61092457,0.0003,4]
[313981585,1707905442544,-3000.0,0.0003,2]
[313981586,1707905442553,-155.37158693,0.0003,2]
[313981587,1707905442562,-16647.72966828,0.0003,3]
[313981588,1707905442572,-155.0,0.0003,2]
[313981589,1707905442581,-2679.83069349,0.0003,4]
[313981590,1707905442592,-73392.57907739,0.0003,4]
[313981591,1707905442601,-1818.27659789,0.0003,4]
[313981592,1707905442611,-2000.0,0.0003,2]
[313981593,1707905442621,-501.04333133,0.0003,4]
[313981594,1707905442630,-1176.65001753,0.0003,4]
[313981595,1707905442640,-9696.33084406,0.0003,2]
[313981596,1707905442650,-313.57416585,0.0003,2]
[313981597,1707905442660,-450.0,0.0003,3]
[313981598,1707905442669,-3000.0,0.0003,2]
[313981599,1707905442678,-500.0,0.0003,2]
[313981600,1707905442688,-300.70250051,0.0003,2]
[313981601,1707905442698,-200.0,0.0003,2]
[313981602,1707905442707,-153.88,0.0003,2]
[313981603,1707905442717,-153.88,0.0003,2]
[313981605,1707905442727,-153.88,0.0003,2]
[313981606,1707905442736,-153.88,0.0003,2]
[313981607,1707905442745,-3000.0,0.0003001,2]
[313981608,1707905442754,-5477.23002,0.0003002,2]
[313981609,1707905442764,-150.0,0.000301,18]
[313981610,1707905442774,-157.67,0.00030137,2]
[313981611,1707905442783,-157.05791938,0.00030137,2]
[313981612,1707905442793,-772.04,0.00030156,2]
[313981613,1707905442802,-300.0,0.00030292,5]
[313981614,1707905442811,-819.24,0.00030301,2]
[313981615,1707905442821,-360.22491493,0.0003033,2]
[313981616,1707905442830,-1000.0,0.00030364,2]
[313981617,1707905442839,-151.0,0.0003042,120]
[313981618,1707905442849,-1829.96,0.00030474,5]
[313981619,1707905442858,-2780.93084689,0.000305,2]
[313981620,1707905442867,-150.0,0.000306,19]
[313981621,1707905442876,-800.0,0.00030603,2]
[313981622,1707905442887,-200.0,0.00030603,2]
[313981623,1707905442896,-186.47212305,0.00030633,2]
[313981624,1707905442905,-335.2,0.0003068,2]
[313981625,1707905442915,-157.67,0.00030822,2]
[313981626,1707905442926,-300.0,0.0003084,5]
[313981627,1707905442936,-208.0,0.00030847,15]
[313981628,1707905442945,-1009.16160507,0.000309,5]
[313981629,1707905442954,-35118.60087569,0.00031,2]
[313981639,1707905443248,-804.29,0.00031,2]
[313981641,1707905443646,-372.14773595,0.00022899,2]
[313981643,1707905443657,-1026.91970231,0.00022899,2]
[313981645,1707905443670,-775.599825,0.00022899,2]
[313981647,1707905443681,-539.33852782,0.00022899,2]
[313981649,1707905443693,-87.01670006,0.00022899,2]
[313981651,1707905443702,-201.21620404,0.000229,2]
[313981653,1707905443712,-62.32491476,0.00031,2]
[313981655,1707905443723,-4966.7063304,0.00031,2]
[313981685,1707905444214,-321.76073503,0.00031,2]
[313981686,1707905444226,-557.57111248,0.00031,2]
[313981687,1707905444238,-1033.3968,0.00031,2]
[313981688,1707905444255,-260.54,0.00031,2]
[313981689,1707905444271,-4126.8,0.00031,2]
[313981690,1707905444282,-613.46221154,0.00031,2]
[313981691,1707905444293,-516.26,0.00031,2]
[313981692,1707905444598,-1618.2870201,0.00031,2]
[313981693,1707905444607,-3440.16136783,0.00031,5]
[313981694,1707905444616,-258.14147873,0.00031,4]
[313981695,1707905444625,-1400.0,0.00031,3]
[313981696,1707905444634,-151.0,0.00031041,30]
[313981697,1707905444643,-150.0,0.000311,19]
[313981698,1707905444652,-499.0,0.00031125,2]
[313981699,1707905444661,-59370.79139595,0.00031133,2]
[313981700,1707905444670,-2044.11131222,0.00031133,2]
[313981701,1707905444680,-307.72,0.00031372,2]
[313981702,1707905444689,-373.3604994,0.00031388,5]
[313981703,1707905444698,-382.36,0.00031443,2]
[313981704,1707905444707,-23282.63770149,0.00031448,7]
[313981705,1707905444716,-157.67,0.00031507,2]
[313981706,1707905444726,-2780.93084689,0.000316,3]
[313981707,1707905444735,-150.0,0.000316,20]
[313981708,1707905444744,-180.0,0.00031644,2]
[313981709,1707905444753,-151.0,0.00031674,7]
[313981710,1707905444762,-1592.71036688,0.00031796,2]
[313981711,1707905444772,-691.35711236,0.00031796,4]
[313981712,1707905444781,-161.23345587,0.00031796,4]
[313981713,1707905444790,-306.51567522,0.00031796,4]
[313981714,1707905444799,-417.12183381,0.00031797,4]
[313981715,1707905444808,-397.37715936,0.00031797,2]
[313981716,1707905444817,-1320.8,0.00031797,2]
[313981717,1707905444826,-1500.0,0.000319,4]
[313981718,1707905444836,-378.96348102,0.00031996,2]
[313981719,1707905444846,-7433.76384141,0.00031997,4]
[313981720,1707905444855,-1981.64800111,0.00031997,4]
[313981721,1707905444864,-50000.0,0.00032,2]
[313981722,1707905444873,-11066.71326447,0.00032,4]
[313981723,1707905444887,-2148.96798036,0.00032,4]
[313981724,1707905444898,-75905.54570123,0.00032,2]
[313981725,1707905444909,-1972.05941686,0.00032,2]
[313981726,1707905444918,-153.88,0.00032,2]
[313981727,1707905444929,-153.88,0.00032,2]
[313981728,1707905444939,-153.88,0.00032,2]
[313981729,1707905444948,-153.88,0.00032,2]
[313981730,1707905444957,-153.88,0.00032,2]
[313981731,1707905444967,-153.88,0.00032,2]
[313981732,1707905444976,-153.88,0.00032,2]
[313981733,1707905444986,-153.88,0.00032,2]
[313981734,1707905444996,-767.80060808,0.00032,2]
[313981735,1707905445005,-767.80060808,0.00032,2]
[313981736,1707905445015,-767.80060808,0.00032,2]
[313981737,1707905445024,-767.80060808,0.00032,2]
[313981738,1707905445034,-767.80060808,0.00032,2]
[313981739,1707905445043,-767.80060808,0.00032,2]
[313981740,1707905445053,-767.80060808,0.00032,2]
[313981741,1707905445062,-767.80060808,0.00032,2]
[313981742,1707905445072,-767.80060808,0.00032,2]
[313981743,1707905445082,-767.80060808,0.00032,2]
[313981744,1707905445092,-767.80060808,0.00032,2]
[313981745,1707905445101,-767.80060808,0.00032,2]
[313981746,1707905445110,-767.80060808,0.00032,2]
[313981747,1707905445120,-767.80060808,0.00032,2]
[313981748,1707905445129,-767.80060808,0.00032,2]
[313981749,1707905445138,-767.80060808,0.00032,2]
[313981750,1707905445148,-767.80060808,0.00032,2]
[313981751,1707905445157,-767.80060808,0.00032,2]
[313981752,1707905445166,-767.80060808,0.00032,2]
[313981753,1707905445175,-767.80060808,0.00032,2]
[313981754,1707905445185,-767.80060808,0.00032,2]
[313981755,1707905445194,-767.80060808,0.00032,2]
[313981756,1707905445204,-767.80060808,0.00032,2]
[313981757,1707905445213,-767.80060808,0.00032,2]
[313981758,1707905445223,-767.80060808,0.00032,2]
[313981759,1707905445232,-767.80060808,0.00032,2]
[313981760,1707905445241,-767.80060808,0.00032,2]
[313981761,1707905445250,-767.80060808,0.00032,2]
[313981762,1707905445259,-767.80060808,0.00032,2]
[313981763,1707905445455,-767.80060808,0.00032,2]
[313981764,1707905445465,-1000.0,0.000321,2]
[313981765,1707905445474,-150.0,0.000321,21]
[313981766,1707905445484,-157.67,0.00032192,2]
[313981767,1707905445494,-155.0,0.000323,4]
[313981768,1707905445503,-151.0,0.00032321,4]
[313981769,1707905445512,-150.0,0.000326,21]
[313981770,1707905445521,-150.0,0.00032663,2]
[313981771,1707905445531,-2780.93084689,0.000327,4]
[313981772,1707905445541,-150.0,0.00032728,2]
[313981773,1707905445550,-499.0,0.00032768,2]
[313981774,1707905445559,-1000.0,0.00032773,2]
[313981775,1707905445569,-1009.8816,0.00032799,2]
[313981776,1707905445578,-150.1,0.000328,2]
[313981777,1707905445587,-150.0,0.000328,2]
[313981778,1707905445598,-18092.25768623,0.000328,2]
[313981779,1707905445611,-41278.53370972,0.000328,2]
[313981780,1707905445620,-2044.11131222,0.000328,2]
[313981781,1707905445629,-150.0,0.00032861,2]
[313981782,1707905445639,-150.57451727,0.00032877,2]
[313981783,1707905445650,-157.67,0.00032877,2]
[313981784,1707905445659,-150.0,0.00032877,2]
[313981785,1707905445668,-228.91,0.00032877,2]
[313981786,1707905445677,-150.0,0.00032877,30]
[313981787,1707905445686,-2171.37546914,0.00032877,2]
[313981788,1707905445695,-502.0,0.0003288,2]
[313981789,1707905445704,-48415.11007376,0.0003288,2]
[313981790,1707905445905,-1034.8656,0.0003288,2]
[313981791,1707905445922,-12909.50123718,0.0003288,2]
[313981792,1707905445934,-364.34246771,0.0003288,2]
[313981793,1707905445946,-19185.20517942,0.0003288,2]
[313981794,1707905445955,-151.0,0.0003288,7]
[313981795,1707905445964,-158.0765,0.0003288,7]
[313981796,1707905445974,-158.0765,0.0003288,7]
[313981797,1707905445984,-168.925129,0.0003288,7]
[313981798,1707905445994,-6470.92,0.0003288,2]
[313981799,1707905446003,-6470.92,0.0003288,2]
[313981800,1707905446013,-6470.92,0.0003288,2]